fUSD/lending_fUSD_20260629
["ID","MTS","AMOUNT","RATE_DAILY","PERIOD"]
[426690234,1782745845000,-300.0,0.00030136,2]
[426690230,1782745845000,-300.0,0.00030136,2]
[426690233,1782745845000,-300.0,0.00030136,2]
[426690231,1782745845000,-300.0,0.00030136,2]
[426690229,1782745845000,-300.0,0.00030136,2]
[426690227,1782745845000,-300.0,0.00030136,2]
[426690228,1782745845000,-300.0,0.00030136,2]
[426690225,1782745845000,-300.0,0.00030136,2]
[426690226,1782745845000,-300.0,0.00030136,2]
[426690232,1782745845000,-300.0,0.00030136,2]
[426690381,1782745846000,-1580.07,0.00032,7]
[426690378,1782745846000,-1771.56621233,0.00032,2]
[426690372,1782745846000,-10046.7725859,0.000319,2]
[426690374,1782745846000,-152.66042869,0.00031963,2]
[426690369,1782745846000,-226.65,0.00031798,3]
[426690375,1782745846000,-181.36,0.00031963,2]
[426690373,1782745846000,-284.35,0.00031909,2]
[426690365,1782745846000,-153.0,0.00031705,30]
[426690377,1782745846000,-5000.0,0.00032,2]
[426690389,1782745846000,-300.0,0.00032259,10]
[426690368,1782745846000,-152.0,0.00031705,30]
[426690371,1782745846000,-151.09934801,0.00031852,2]
[426690379,1782745846000,-14621.65795589,0.00032,2]
[426690387,1782745846000,-460.04,0.00032232,7]
[426690380,1782745846000,-800.0,0.00032,5]
[426690388,1782745846000,-13798.21,0.00032232,7]
[426690367,1782745846000,-224.0,0.00031705,30]
[426690384,1782745846000,-151.09934801,0.0003218,2]
[426690386,1782745846000,-1510.23,0.00032232,7]
[426690385,1782745846000,-10046.7725859,0.000322,2]
[426690383,1782745846000,-3553.21999901,0.00032112,5]
[426690391,1782745846000,-914.53051847,0.000323,2]
[426690397,1782745846000,-912.3165226,0.000324,2]
[426690398,1782745846000,-800.0,0.000325,5]
[426690400,1782745846000,-151.09934801,0.00032508,2]
[426690392,1782745846000,-2000.0,0.00032303,7]
[426690382,1782745846000,-1859.14,0.00032,7]
[426690376,1782745846000,-8202.4496,0.00032,2]
[426690364,1782745846000,-510.0,0.00031705,30]
[426690362,1782745846000,-157.0,0.00031701,30]
[426690340,1782745846000,-251.0,0.0003135,2]
[426690337,1782745846000,-151.09934801,0.00031196,2]
[426690338,1782745846000,-152.5325826,0.00031286,10]
[426690339,1782745846000,-10046.7725859,0.000313,2]
[426690352,1782745846000,-151.09934801,0.00031524,2]
[426690342,1782745846000,-251.0,0.0003135,2]
[426690345,1782745846000,-251.0,0.0003135,2]
[426690341,1782745846000,-251.0,0.0003135,2]
[426690344,1782745846000,-251.0,0.0003135,2]
[426690347,1782745846000,-200.0,0.00031403,2]
[426690349,1782745846000,-500.0,0.00031479,22]
[426690346,1782745846000,-685.34,0.00031366,60]
[426690366,1782745846000,-157.0,0.00031705,30]
[426690348,1782745846000,-729.39393284,0.0003147,2]
[426690350,1782745846000,-800.0,0.000315,2]
[426690353,1782745846000,-502.0,0.00031538,15]
[426690355,1782745846000,-166.66,0.00031616,2]
[426690361,1782745846000,-170.0,0.00031701,30]
[426690359,1782745846000,-154.0,0.00031701,30]
[426690360,1782745846000,-199.0,0.00031701,30]
[426690354,1782745846000,-10046.7725859,0.000316,2]
[426690358,1782745846000,-155.0,0.00031701,30]
[426690357,1782745846000,-345.34,0.00031688,120]
[426690356,1782745846000,-152.82,0.0003167,2]
[426690399,1782745846000,-502.0,0.00032508,16]
[426690363,1782745846000,-154.0,0.00031701,30]
[426690351,1782745846000,-854.57,0.00031507,6]
[426690390,1782745846000,-171932.27160954,0.0003226,2]
[426690370,1782745846000,-485.96,0.000318,7]
[426690395,1782745846000,-150.0,0.00032383,2]
[426690432,1782745846000,-1859.14,0.000329,30]
[426690431,1782745846000,-1580.07,0.000329,30]
[426690428,1782745846000,-500.0,0.00032877,2]
[426690437,1782745846000,-500.0,0.00033,20]
[426690433,1782745846000,-570.14233947,0.00033,7]
[426690434,1782745846000,-500.0,0.00033,20]
[426690436,1782745846000,-500.0,0.00033,20]
[426690439,1782745846000,-500.0,0.00033,20]
[426690438,1782745846000,-500.0,0.00033,20]
[426690435,1782745846000,-500.0,0.00033,20]
[426690441,1782745846000,-500.0,0.00033,20]
[426690442,1782745846000,-500.0,0.00033,20]
[426690440,1782745846000,-500.0,0.00033,20]
[426690449,1782745846000,-500.0,0.00033,20]
[426690450,1782745846000,-500.0,0.00033,20]
[426690443,1782745846000,-500.0,0.00033,20]
[426690447,1782745846000,-1710.42701841,0.00033,7]
[426690451,1782745846000,-500.0,0.00033,20]
[426690446,1782745846000,-500.0,0.00033,20]
[426690448,1782745846000,-800.0,0.00033,5]
[426690445,1782745846000,-500.0,0.00033,20]
[426690444,1782745846000,-500.0,0.00033,20]
[426690452,1782745846000,-500.0,0.00033,20]
[426690456,1782745846000,-500.0,0.00033,20]
[426690455,1782745846000,-500.0,0.00033,20]
[426690393,1782745846000,-6294.41763374,0.0003233,120]
[426690453,1782745846000,-500.0,0.00033,20]
[426690429,1782745846000,-500.0,0.00032877,2]
[426690430,1782745846000,-10046.7725859,0.000329,2]
[426690454,1782745846000,-500.0,0.00033,20]
[426690424,1782745846000,-3000.0,0.00032876,2]
[426690427,1782745846000,-151.0,0.00032877,7]
[426690396,1782745846000,-41188.4448173,0.000324,2]
[426690403,1782745846000,-166.66,0.00032659,2]
[426690401,1782745846000,-345.34,0.0003251,120]
[426690407,1782745846000,-170.0,0.00032701,30]
[426690404,1782745846000,-155.0,0.00032701,30]
[426690405,1782745846000,-154.0,0.00032701,30]
[426690406,1782745846000,-199.0,0.00032701,30]
[426690402,1782745846000,-10046.7725859,0.000326,2]
[426690412,1782745846000,-157.0,0.00032705,30]
[426690413,1782745846000,-224.0,0.00032705,30]
[426690408,1782745846000,-157.0,0.00032701,30]
[426690410,1782745846000,-510.0,0.00032705,30]
[426690409,1782745846000,-164.0,0.00032701,30]
[426690394,1782745846000,-231.55362948,0.0003234,21]
[426690415,1782745846000,-4942.63368594,0.000328,2]
[426690411,1782745846000,-153.0,0.00032705,30]
[426690419,1782745846000,-152.5325826,0.00032861,12]
[426690421,1782745846000,-3000.0,0.00032876,2]
[426690423,1782745846000,-3000.0,0.00032876,2]
[426690420,1782745846000,-500.0,0.00032876,14]
[426690422,1782745846000,-3000.0,0.00032876,2]
[426690417,1782745846000,-151.09934801,0.00032836,2]
[426690414,1782745846000,-152.0,0.00032705,30]
[426690425,1782745846000,-3000.0,0.00032876,2]
[426690426,1782745846000,-2066.7244798,0.00032876,2]
[426690418,1782745846000,-37893.30007821,0.00032848,5]
[426690416,1782745846000,-223.21,0.00032801,3]
[426690497,1782745847000,-500.0,0.00033,20]
[426690491,1782745847000,-500.0,0.00033,20]
[426690499,1782745847000,-500.0,0.00033,20]
[426690494,1782745847000,-500.0,0.00033,20]
[426690492,1782745847000,-500.0,0.00033,20]
[426690498,1782745847000,-500.0,0.00033,20]
[426690489,1782745847000,-500.0,0.00033,20]
[426690490,1782745847000,-500.0,0.00033,20]
[426690488,1782745847000,-500.0,0.00033,20]
[426690484,1782745847000,-500.0,0.00033,20]
[426690496,1782745847000,-500.0,0.00033,20]
[426690500,1782745847000,-500.0,0.00033,20]
[426690503,1782745847000,-500.0,0.00033,20]
[426690495,1782745847000,-500.0,0.00033,20]
[426690502,1782745847000,-500.0,0.00033,20]
[426690512,1782745847000,-40000.0,0.000332,2]
[426690501,1782745847000,-500.0,0.00033,20]
[426690504,1782745847000,-440.05,0.00033,20]
[426690505,1782745847000,-376.0,0.00033003,3]
[426690509,1782745847000,-386.0,0.00033155,30]
[426690506,1782745847000,-318.0,0.00033032,3]
[426690507,1782745847000,-815.94,0.00033058,7]
[426690508,1782745847000,-9999.99999901,0.000331,2]
[426690485,1782745847000,-500.0,0.00033,20]
[426690511,1782745847000,-10046.7725859,0.000332,2]
[426690493,1782745847000,-500.0,0.00033,20]
[426690483,1782745847000,-500.0,0.00033,20]
[426690471,1782745847000,-500.0,0.00033,20]
[426690481,1782745847000,-500.0,0.00033,20]
[426690510,1782745847000,-151.09934801,0.00033164,2]
[426690459,1782745847000,-500.0,0.00033,20]
[426690457,1782745847000,-500.0,0.00033,20]
[426690458,1782745847000,-500.0,0.00033,20]
[426690460,1782745847000,-500.0,0.00033,20]
[426690461,1782745847000,-500.0,0.00033,20]
[426690462,1782745847000,-500.0,0.00033,20]
[426690464,1782745847000,-500.0,0.00033,20]
[426690465,1782745847000,-500.0,0.00033,20]
[426690467,1782745847000,-500.0,0.00033,20]
[426690469,1782745847000,-500.0,0.00033,20]
[426690466,1782745847000,-500.0,0.00033,20]
[426690482,1782745847000,-500.0,0.00033,20]
[426690468,1782745847000,-500.0,0.00033,20]
[426690463,1782745847000,-500.0,0.00033,20]
[426690473,1782745847000,-500.0,0.00033,20]
[426690474,1782745847000,-500.0,0.00033,20]
[426690472,1782745847000,-500.0,0.00033,20]
[426690476,1782745847000,-500.0,0.00033,20]
[426690487,1782745847000,-500.0,0.00033,20]
[426690486,1782745847000,-500.0,0.00033,20]
[426690475,1782745847000,-500.0,0.00033,20]
[426690477,1782745847000,-500.0,0.00033,20]
[426690480,1782745847000,-500.0,0.00033,20]
[426690479,1782745847000,-500.0,0.00033,20]
[426690478,1782745847000,-500.0,0.00033,20]
[426690470,1782745847000,-500.0,0.00033,20]
[426690515,1782745847000,-341.516641,0.000333,8]
[426690598,1782745847000,-300.0,0.00033687,2]
[426690524,1782745847000,-1239.20700929,0.000335,2]
[426690575,1782745847000,-300.0,0.00033687,2]
[426690579,1782745847000,-300.0,0.00033687,2]
[426690585,1782745847000,-300.0,0.00033687,2]
[426690602,1782745847000,-300.0,0.00033687,2]
[426690606,1782745847000,-300.0,0.00033687,2]
[426690604,1782745847000,-607.84242655,0.00033687,2]
[426690600,1782745847000,-300.0,0.00033687,2]
[426690608,1782745847000,-300.0,0.00033687,2]
[426690594,1782745847000,-495.28773916,0.00033687,2]
[426690610,1782745847000,-300.0,0.00033687,2]
[426690587,1782745847000,-300.0,0.00033687,2]
[426690595,1782745847000,-300.0,0.00033687,2]
[426690589,1782745847000,-300.0,0.00033687,2]
[426690592,1782745847000,-300.0,0.00033687,2]
[426690612,1782745847000,-300.0,0.00033687,2]
[426690614,1782745847000,-536.77715252,0.00033687,2]
[426690618,1782745847000,-300.0,0.00033687,2]
[426690622,1782745847000,-300.0,0.00033687,2]
[426690616,1782745847000,-300.0,0.00033687,2]
[426690620,1782745847000,-730.12015411,0.00033687,2]
[426690624,1782745847000,-300.0,0.00033687,2]
[426690628,1782745847000,-302.16203863,0.00033687,2]
[426690626,1782745847000,-300.0,0.00033687,2]
[426690630,1782745847000,-300.0,0.00033687,2]
[426690513,1782745847000,-2832.27139098,0.00033256,2]
[426690567,1782745847000,-2442.0,0.00033669,10]
[426690569,1782745847000,-261543.0,0.0003367,30]
[426690631,1782745847000,-300.0,0.00033687,2]
[426690577,1782745847000,-300.0,0.00033687,2]
[426690573,1782745847000,-300.0,0.00033687,2]
[426690514,1782745847000,-485.96,0.000333,7]
[426690517,1782745847000,-152.0,0.00033434,5]
[426690516,1782745847000,-345.34,0.00033332,120]
[426690519,1782745847000,-502.0,0.00033477,17]
[426690522,1782745847000,-10046.7725859,0.000335,2]
[426690526,1782745847000,-800.0,0.000335,5]
[426690529,1782745847000,-1195.58,0.000335,30]
[426690531,1782745847000,-1195.58,0.00033525,30]
[426690542,1782745847000,-1195.58,0.000336,30]
[426690544,1782745847000,-284.35,0.0003363,2]
[426690533,1782745847000,-1195.58,0.0003355,30]
[426690548,1782745847000,-65502.75413252,0.0003366,2]
[426690520,1782745847000,-151.09934801,0.00033492,2]
[426690538,1782745847000,-498.705103,0.0003358,7]
[426690535,1782745847000,-1195.58,0.00033575,30]
[426690583,1782745847000,-300.0,0.00033687,2]
[426690571,1782745847000,-300.0,0.00033687,2]
[426690565,1782745847000,-250.0,0.00033669,7]
[426690563,1782745847000,-1737.06,0.00033669,7]
[426690581,1782745847000,-300.0,0.00033687,2]
[426690537,1782745847000,-498.705102,0.0003358,7]
[426690551,1782745847000,-1000.0,0.00033661,2]
[426690540,1782745847000,-419.465089,0.0003358,7]
[426690557,1782745847000,-1553.58,0.00033661,2]
[426690554,1782745847000,-1330.38,0.00033661,2]
[426690560,1782745847000,-166.0,0.00033667,7]
[426690668,1782745848000,-300.0,0.00033687,2]
[426690674,1782745848000,-1101.0618519,0.00033687,2]
[426690667,1782745848000,-300.0,0.00033687,2]
[426690669,1782745848000,-446.09705538,0.00033687,2]
[426690662,1782745848000,-454.26701287,0.00033687,2]
[426690666,1782745848000,-300.0,0.00033687,2]
[426690664,1782745848000,-300.0,0.00033687,2]
[426690661,1782745848000,-300.0,0.00033687,2]
[426690671,1782745848000,-300.0,0.00033687,2]
[426690663,1782745848000,-300.0,0.00033687,2]
[426690665,1782745848000,-300.0,0.00033687,2]
[426690673,1782745848000,-300.0,0.00033687,2]
[426690681,1782745848000,-300.0,0.00033687,2]
[426690672,1782745848000,-300.0,0.00033687,2]
[426690675,1782745848000,-300.0,0.00033687,2]
[426690677,1782745848000,-300.0,0.00033687,2]
[426690678,1782745848000,-300.0,0.00033687,2]
[426690682,1782745848000,-300.0,0.00033687,2]
[426690680,1782745848000,-300.0,0.00033687,2]
[426690684,1782745848000,-300.0,0.00033687,2]
[426690683,1782745848000,-300.0,0.00033687,2]
[426690694,1782745848000,-300.0,0.00033687,2]
[426690685,1782745848000,-300.0,0.00033687,2]
[426690659,1782745848000,-300.0,0.00033687,2]
[426690686,1782745848000,-300.0,0.00033687,2]
[426690676,1782745848000,-300.0,0.00033687,2]
[426690660,1782745848000,-584.66801755,0.00033687,2]
[426690643,1782745848000,-954.30228826,0.00033687,2]
[426690654,1782745848000,-300.0,0.00033687,2]
[426690692,1782745848000,-300.0,0.00033687,2]
[426690632,1782745848000,-300.0,0.00033687,2]
[426690633,1782745848000,-300.0,0.00033687,2]
[426690646,1782745848000,-300.0,0.00033687,2]
[426690635,1782745848000,-300.0,0.00033687,2]
[426690645,1782745848000,-300.0,0.00033687,2]
[426690636,1782745848000,-300.0,0.00033687,2]
[426690634,1782745848000,-300.0,0.00033687,2]
[426690638,1782745848000,-345.7536,0.00033687,2]
[426690637,1782745848000,-300.0,0.00033687,2]
[426690644,1782745848000,-1807.30940739,0.00033687,2]
[426690640,1782745848000,-300.0,0.00033687,2]
[426690670,1782745848000,-300.0,0.00033687,2]
[426690642,1782745848000,-300.0,0.00033687,2]
[426690639,1782745848000,-300.0,0.00033687,2]
[426690649,1782745848000,-311.22255108,0.00033687,2]
[426690648,1782745848000,-300.0,0.00033687,2]
[426690656,1782745848000,-300.0,0.00033687,2]
[426690650,1782745848000,-300.0,0.00033687,2]
[426690647,1782745848000,-576.43989485,0.00033687,2]
[426690657,1782745848000,-300.0,0.00033687,2]
[426690653,1782745848000,-300.0,0.00033687,2]
[426690651,1782745848000,-569.01654071,0.00033687,2]
[426690652,1782745848000,-300.0,0.00033687,2]
[426690658,1782745848000,-513.95923093,0.00033687,2]
[426690655,1782745848000,-300.0,0.00033687,2]
[426690641,1782745848000,-300.0,0.00033687,2]
[426690691,1782745848000,-300.0,0.00033687,2]
[426690679,1782745848000,-300.0,0.00033687,2]
[426690687,1782745848000,-495.28773916,0.00033687,2]
[426690720,1782745848000,-300.0,0.00033687,2]
[426690721,1782745848000,-954.30228826,0.00033687,2]
[426690731,1782745848000,-300.0,0.00033687,2]
[426690730,1782745848000,-300.0,0.00033687,2]
[426690728,1782745848000,-300.0,0.00033687,2]
[426690726,1782745848000,-300.0,0.00033687,2]
[426690725,1782745848000,-576.43989485,0.00033687,2]
[426690729,1782745848000,-569.01654071,0.00033687,2]
[426690727,1782745848000,-311.22255108,0.00033687,2]
[426690723,1782745848000,-300.0,0.00033687,2]
[426690744,1782745848000,-300.0,0.00033687,2]
[426690743,1782745848000,-300.0,0.00033687,2]
[426690724,1782745848000,-300.0,0.00033687,2]
[426690732,1782745848000,-300.0,0.00033687,2]
[426690736,1782745848000,-513.95923093,0.00033687,2]
[426690739,1782745848000,-300.0,0.00033687,2]
[426690734,1782745848000,-300.0,0.00033687,2]
[426690738,1782745848000,-584.66801755,0.00033687,2]
[426690740,1782745848000,-454.26701287,0.00033687,2]
[426690742,1782745848000,-300.0,0.00033687,2]
[426690735,1782745848000,-300.0,0.00033687,2]
[426690741,1782745848000,-300.0,0.00033687,2]
[426690745,1782745848000,-300.0,0.00033687,2]
[426690748,1782745848000,-305.1348987,0.0003369,60]
[426690746,1782745848000,-300.0,0.00033687,2]
[426690689,1782745848000,-300.0,0.00033687,2]
[426690737,1782745848000,-300.0,0.00033687,2]
[426690722,1782745848000,-1807.30940739,0.00033687,2]
[426690733,1782745848000,-300.0,0.00033687,2]
[426690716,1782745848000,-345.7536,0.00033687,2]
[426690693,1782745848000,-607.84242655,0.00033687,2]
[426690719,1782745848000,-300.0,0.00033687,2]
[426690688,1782745848000,-300.0,0.00033687,2]
[426690690,1782745848000,-300.0,0.00033687,2]
[426690695,1782745848000,-300.0,0.00033687,2]
[426690705,1782745848000,-303.73373497,0.00033687,2]
[426690699,1782745848000,-536.77715252,0.00033687,2]
[426690700,1782745848000,-300.0,0.00033687,2]
[426690697,1782745848000,-300.0,0.00033687,2]
[426690703,1782745848000,-300.0,0.00033687,2]
[426690747,1782745848000,-372.5023923,0.0003369,60]
[426690702,1782745848000,-730.12015411,0.00033687,2]
[426690698,1782745848000,-300.0,0.00033687,2]
[426690706,1782745848000,-300.0,0.00033687,2]
[426690704,1782745848000,-300.0,0.00033687,2]
[426690715,1782745848000,-300.0,0.00033687,2]
[426690717,1782745848000,-300.0,0.00033687,2]
[426690701,1782745848000,-300.0,0.00033687,2]
[426690711,1782745848000,-300.0,0.00033687,2]
[426690709,1782745848000,-300.0,0.00033687,2]
[426690707,1782745848000,-302.16203863,0.00033687,2]
[426690710,1782745848000,-300.0,0.00033687,2]
[426690712,1782745848000,-300.0,0.00033687,2]
[426690718,1782745848000,-300.0,0.00033687,2]
[426690714,1782745848000,-300.0,0.00033687,2]
[426690708,1782745848000,-300.0,0.00033687,2]
[426690696,1782745848000,-300.0,0.00033687,2]
[426690713,1782745848000,-300.0,0.00033687,2]
[426690784,1782745849000,-151.0,0.00034,7]
[426690787,1782745849000,-785.0,0.00034028,2]
[426690786,1782745849000,-793.99279464,0.00034028,2]
[426690790,1782745849000,-151.09934801,0.00034147,2]
[426690785,1782745849000,-150.0,0.00034002,2]
[426690782,1782745849000,-800.0,0.00034,7]
[426690781,1782745849000,-284.0,0.00034,2]
[426690788,1782745849000,-785.0,0.00034028,2]
[426690793,1782745849000,-198.03,0.0003424,120]
[426690792,1782745849000,-10046.7725859,0.000342,2]
[426690789,1782745849000,-785.0,0.00034028,2]
[426690783,1782745849000,-216.58458871,0.00034,30]
[426690791,1782745849000,-345.34,0.00034154,120]
[426690818,1782745849000,-151.0,0.00034459,7]
[426690799,1782745849000,-785.0,0.00034398,2]
[426690794,1782745849000,-302.0,0.00034246,14]
[426690802,1782745849000,-785.0,0.00034398,2]
[426690800,1782745849000,-785.0,0.00034398,2]
[426690796,1782745849000,-600.0,0.00034247,120]
[426690805,1782745849000,-785.0,0.00034398,2]
[426690803,1782745849000,-785.0,0.00034398,2]
[426690801,1782745849000,-785.0,0.00034398,2]
[426690795,1782745849000,-600.0,0.00034247,120]
[426690798,1782745849000,-738.70849652,0.0003435,120]
[426690804,1782745849000,-785.0,0.00034398,2]
[426690817,1782745849000,-151.0,0.00034459,7]
[426690777,1782745849000,-10046.7725859,0.000339,2]
[426690797,1782745849000,-600.0,0.00034247,120]
[426690773,1782745849000,-1909.05,0.000338,30]
[426690751,1782745849000,-500.0,0.0003369,60]
[426690776,1782745849000,-173.09,0.00033839,120]
[426690750,1782745849000,-500.0,0.0003369,60]
[426690806,1782745849000,-785.0,0.00034398,2]
[426690757,1782745849000,-1000.0,0.00033697,2]
[426690753,1782745849000,-352.8326883,0.0003369,60]
[426690754,1782745849000,-1000.0,0.00033697,2]
[426690755,1782745849000,-1000.0,0.00033697,2]
[426690749,1782745849000,-500.0,0.0003369,60]
[426690752,1782745849000,-533.2822586,0.0003369,60]
[426690756,1782745849000,-1495.56,0.00033697,2]
[426690759,1782745849000,-162.40577252,0.00033701,30]
[426690758,1782745849000,-1330.37,0.00033697,2]
[426690764,1782745849000,-166.66,0.00033703,2]
[426690763,1782745849000,-157.0,0.00033701,30]
[426690762,1782745849000,-170.0,0.00033701,30]
[426690760,1782745849000,-154.0,0.00033701,30]
[426690761,1782745849000,-199.0,0.00033701,30]
[426690765,1782745849000,-510.0,0.00033705,30]
[426690767,1782745849000,-157.0,0.00033705,30]
[426690768,1782745849000,-224.0,0.00033705,30]
[426690769,1782745849000,-152.0,0.00033705,30]
[426690772,1782745849000,-1859.14,0.000338,30]
[426690771,1782745849000,-1580.07,0.000338,30]
[426690779,1782745849000,-152.447166,0.00033964,7]
[426690770,1782745849000,-815.94,0.00033743,7]
[426690780,1782745849000,-67399.5685899,0.00034,2]
[426690775,1782745849000,-151.09934801,0.0003382,2]
[426690774,1782745849000,-366.71,0.00033805,3]
[426690778,1782745849000,-368.51,0.000339,120]
[426690807,1782745849000,-570.14233947,0.000344,7]
[426690766,1782745849000,-153.0,0.00033705,30]
[426690809,1782745849000,-1500.0,0.000344,7]
[426690846,1782745849000,-510.0,0.00034705,30]
[426690847,1782745849000,-224.0,0.00034705,30]
[426690854,1782745849000,-2336.0,0.00034852,11]
[426690845,1782745849000,-170.0,0.00034701,30]
[426690844,1782745849000,-199.0,0.00034701,30]
[426690849,1782745849000,-261543.0,0.0003478,30]
[426690852,1782745849000,-151.09934801,0.00034803,2]
[426690850,1782745849000,-1500.0,0.00034795,2]
[426690853,1782745849000,-353.94,0.00034808,3]
[426690848,1782745849000,-166.66,0.00034747,2]
[426690855,1782745849000,-10046.7725859,0.000349,2]
[426690851,1782745849000,-485.96,0.000348,7]
[426690857,1782745849000,-1696.93,0.000349,30]
[426690843,1782745849000,-163.63306447,0.00034701,30]
[426690859,1782745849000,-5725.99032933,0.00034989,2]
[426690867,1782745849000,-25199.07845607,0.00035,2]
[426690860,1782745849000,-227.09549037,0.00034989,2]
[426690856,1782745849000,-39332.0,0.000349,7]
[426690865,1782745849000,-1500.0,0.00035,2]
[426690864,1782745849000,-213.34860366,0.00035,2]
[426690861,1782745849000,-452.81055652,0.00034989,2]
[426690862,1782745849000,-1500.0,0.00035,2]
[426690863,1782745849000,-4101.2248,0.00035,2]
[426690866,1782745849000,-364.00622079,0.00035,30]
[426690869,1782745849000,-4246.73583235,0.00035,7]
[426690871,1782745849000,-3170.53708571,0.00035,2]
[426690870,1782745849000,-8331.26488816,0.00035,30]
[426690808,1782745849000,-1710.42701841,0.000344,7]
[426690858,1782745849000,-345.34,0.00034976,120]
[426690838,1782745849000,-151.0,0.00034602,7]
[426690868,1782745849000,-1500.0,0.00035,2]
[426690835,1782745849000,-152.0,0.00034602,7]
[426690810,1782745849000,-815.95,0.00034428,7]
[426690839,1782745849000,-151.0,0.00034602,7]
[426690811,1782745849000,-502.0,0.00034446,18]
[426690813,1782745849000,-5000.0,0.00034459,2]
[426690812,1782745849000,-6896.2026673,0.00034459,2]
[426690814,1782745849000,-5000.0,0.00034459,2]
[426690816,1782745849000,-5000.0,0.00034459,2]
[426690815,1782745849000,-5000.0,0.00034459,2]
[426690819,1782745849000,-151.09934801,0.00034475,2]
[426690820,1782745849000,-800.0,0.000345,7]
[426690822,1782745849000,-3577.294,0.00034558,2]
[426690827,1782745849000,-1580.07,0.000346,30]
[426690823,1782745849000,-283.0,0.00034558,2]
[426690825,1782745849000,-1278.0,0.00034558,2]
[426690821,1782745849000,-202.91070771,0.00034554,14]
[426690834,1782745849000,-151.0,0.00034602,7]
[426690836,1782745849000,-152.0,0.00034602,7]
[426690829,1782745849000,-151.0,0.00034602,7]
[426690837,1782745849000,-151.0,0.00034602,7]
[426690832,1782745849000,-151.0,0.00034602,7]
[426690841,1782745849000,-202.95207754,0.00034636,2]
[426690833,1782745849000,-151.0,0.00034602,7]
[426690840,1782745849000,-151.0,0.00034602,7]
[426690831,1782745849000,-151.0,0.00034602,7]
[426690830,1782745849000,-151.0,0.00034602,7]
[426690824,1782745849000,-1362.0,0.00034558,2]
[426690828,1782745849000,-1859.14,0.000346,30]
[426690826,1782745849000,-10046.7725859,0.000346,2]
[426690842,1782745849000,-2627.8378261,0.00034659,2]
[426690894,1782745850000,-200.0,0.00035145,10]
[426690889,1782745850000,-5800.0,0.00035125,2]
[426690888,1782745850000,-160.0,0.0003512,11]
[426690886,1782745850000,-330.8191122,0.000351,120]
[426690887,1782745850000,-2336.0,0.0003512,11]
[426690896,1782745850000,-200.0,0.00035259,7]
[426690897,1782745850000,-200.0,0.00035259,7]
[426690898,1782745850000,-200.0,0.00035259,7]
[426690895,1782745850000,-2336.0,0.00035212,11]
[426690903,1782745850000,-570.14233947,0.000354,7]
[426690905,1782745850000,-1710.42701841,0.000354,7]
[426690893,1782745850000,-5800.0,0.00035142,2]
[426690904,1782745850000,-1710.42701841,0.000354,7]
[426690884,1782745850000,-2336.0,0.00035021,11]
[426690878,1782745850000,-800.0,0.00035,7]
[426690890,1782745850000,-151.09934801,0.00035131,2]